[Event "Paris FIDE GP"]
[Site "Elancourt"]
[Date "2013.09.27"]
[Round "5"]
[White "Nakamura, Hikaru"]
[Black "Fressinet, Laurent"]
[Result "1/2-1/2"]
[ECO "C65"]
[WhiteElo "2772"]
[BlackElo "2708"]
[Annotator "ChessBase Website"]
[PlyCount "61"]
[EventDate "2013.09.22"]
[EventType "tourn"]
[EventRounds "11"]
[EventCountry "FRA"]
[EventCategory "20"]
[SourceTitle "CBM 157"]
[Source "ChessBase"]
[SourceDate "2013.11.12"]
[SourceVersion "1"]
[SourceVersionDate "2013.11.12"]
[SourceQuality "1"]
[TimeControl "40/7200:20/3600:900+30"]
[WhiteClock "2:00:00"]
[BlackClock "2:00:00"]

1. e4 {[%emt 0:00:01]} e5 {[%emt 0:00:05]} 2. Nf3 {[%emt 0:00:11]} Nc6 {
[%emt 0:00:09]} 3. Bb5 {[%emt 0:00:07]} Nf6 {[%emt 0:00:05]} 4. d3 {[%emt 0:00:
13]} Bc5 {[%emt 0:00:07]} 5. Bxc6 {[%emt 0:00:05]} dxc6 {[%emt 0:00:06]} 6. h3
{[%emt 0:00:06]} Be6 {[%emt 0:08:15]} 7. Qe2 {[%emt 0:01:11]} Nd7 {[%emt 0:05:
21]} 8. Be3 {[%emt 0:01:13]} f6 $146 {[%emt 0:03:41]} (8... Qe7 9. Bxc5 Qxc5
10. Nc3 Qd6 11. O-O-O c5 12. Nh4 O-O-O 13. Nf5 Bxf5 14. exf5 Nf6 15. Rhe1 Rhe8
16. Qf3 Qd4 17. g4 h6 18. a3 a6 19. Re3 Re7 20. Kb1 Nd5 21. Nxd5 Qxd5 22. Qxd5
Rxd5 23. Rde1 f6 24. f4 Kd7 25. c3 b5 26. Kc2 Kd6 27. b3 Re8 28. Re4 Re7 29. b4
Re8 30. c4 bxc4 31. dxc4 Rd4 32. fxe5+ fxe5 33. bxc5+ Kxc5 34. Rxe5+ Rxe5 35.
Rxe5+ Kxc4 36. Re7 c5 37. Rxg7 Rd3 38. h4 {Morozevich,A (2748)-Caruana,F (2786)
Tashkent 2012 1-0}) 9. Bxc5 {[%emt 0:03:44]} Nxc5 {[%emt 0:00:05]} 10. Qe3 {
[%emt 0:00:05]} Qe7 {[%emt 0:10:38]} 11. Nc3 {[%emt 0:00:33]} O-O-O {[%emt 0:
05:06]} 12. O-O-O {[%emt 0:12:55]} Kb8 {[%emt 0:02:25]} 13. d4 {[%emt 0:01:12]}
exd4 {[%emt 0:01:49]} 14. Nxd4 {[%emt 0:01:50]} Nd7 {[%emt 0:12:22]} 15. f4 {
[%emt 0:06:26]} Nb6 {[%emt 0:02:45]} 16. Nxe6 {[%emt 0:33:30]} Qxe6 {[%emt 0:
00:37]} 17. Qc5 {[%emt 0:00:04]} Rd6 {[%emt 0:06:53]} 18. b3 {[%emt 0:03:34]}
Rhd8 {[%emt 0:04:33]} 19. Qh5 {[%emt 0:02:04]} h6 {[%emt 0:04:33]} 20. Qg4 {
[%emt 0:03:44]} Qe7 {[%emt 0:01:32]} 21. Rxd6 {[%emt 0:00:26] The American
player essayed a positional Spanish which trades on d6 only after Black has
committed some of his pieces to arguably no the best squares for the pawn
structure, especially the knight on f6. However Fressinet really had no issues
equalizing and eventually he made a small sacrifice to force a perpetual.} cxd6
{[%emt 0:03:13]} 22. Rd1 {[%emt 0:01:16]} d5 {[%emt 0:14:15]} 23. exd5 {
[%emt 0:05:32]} Qa3+ {[%emt 0:07:52]} 24. Kb1 {[%emt 0:00:10]} Nc4 {[%emt 0:00:
05]} 25. bxc4 {[%emt 0:00:03]} Qb4+ {[%emt 0:00:12]} 26. Kc1 {[%emt 0:00:03]}
Qxc3 {[%emt 0:00:05]} 27. Qxg7 {[%emt 0:00:13]} Qa1+ {[%emt 0:00:23]} 28. Kd2 {
[%emt 0:00:04]} Qd4+ {[%emt 0:00:04]} 29. Kc1 {[%emt 0:00:02]} Qa1+ {[%emt 0:
00:31]} 30. Kd2 {[%emt 0:00:18]} Qd4+ {[%emt 0:00:04]} 31. Kc1 {[%emt 0:00:04]}
1/2-1/2

[Event "EU-Cup 30th"]
[Site "Bilbao"]
[Date "2014.09.17"]
[Round "4.4"]
[White "Movsesian, Sergei"]
[Black "Malakhov, Vladimir"]
[Result "0-1"]
[ECO "C65"]
[WhiteElo "2663"]
[BlackElo "2696"]
[Annotator "Chirila,C"]
[PlyCount "92"]
[EventDate "2014.09.14"]
[EventType "team-swiss"]
[EventRounds "7"]
[EventCountry "ESP"]
[SourceTitle "CBM 163"]
[Source "ChessBase"]
[SourceDate "2014.11.11"]
[SourceVersion "1"]
[SourceVersionDate "2014.11.11"]
[SourceQuality "1"]
[WhiteTeam "St Petersburg"]
[BlackTeam "Malachite Sverdlovsk Region"]
[WhiteTeamCountry "RUS"]
[BlackTeamCountry "RUS"]
[TimeControl "40/5400+30:1800+30"]

1. e4 e5 2. Nf3 Nc6 3. Bb5 Nf6 {The Berlin Wall, arguably the most solid
defense against 1.e4} 4. d3 {the anti-Berlin} (4. O-O Nxe4 5. d4 Nd6 6. Bxc6
dxc6 7. dxe5 Nf5 8. Qxd8+ Kxd8 {the main line, this endgame is one of the most
complex feature in chess. Garry Kasparov was not able to find a cure for it in
the match he lost against Kramnik. Carlsen is known to have problems playing
it as black (see his recent game lost against Caruana), and so on..}) 4... Bc5
5. Bxc6 dxc6 6. Nbd2 Nd7 7. Nc4 O-O 8. O-O Re8 9. a4 Bf8 10. Kh1 f6 11. Ng1 Nc5
{black wants to transfer his knight to e6, from there he will control the
important squares d4 and f4} 12. b3 Ne6 13. Ne2 c5 14. f4 exf4 15. Nxf4 Nxf4
16. Bxf4 Be6 17. Ne3 Qd7 18. Qf3 Rad8 19. Qg3 Bd6 20. Bxd6 Qxd6 21. Qh4 Qe5 22.
Rae1 c6 23. Nf5 Bxf5 24. exf5 Qd4 25. Qg3 Qd7 26. Qf4 h6 27. h3 Kh8 28. Kh2 (
28. Qg4 {was a better try to maintain a minuscule advantage, the e6 outpost
has to be used} Re7 $6 29. Re6 Rde8 30. Rfe1 Rxe6 31. fxe6 Qd5 32. c4 Qxd3 33.
Rd1 Qe3 34. Rd7 $36) 28... Re7 29. Rxe7 Qxe7 30. Qg3 Re8 31. Rf4 Qe2 32. Re4
Rxe4 33. dxe4 Qxe4 {now the position is completely equal, with best mutual
play it should lead to complete simplifications on the queen's side and a draw
will be agreed upon} 34. Qb8+ Kh7 35. Qxa7 (35. Qxb7 {was also possible} Qxc2
36. a5 $1 {in queens endgames, the most important is how close one's pawn is
to promotion, not the material balance} Qxf5 37. Qxa7 Qe5+ 38. Kg1 Qd4+ 39. Kh2
Qe5+ $11) 35... c4 $1 {black already begins to exert some pressure, the
position is still equal with best play} 36. Qxb7 (36. bxc4 Qxc4 37. a5 (37.
Qxb7 $2 Qxa4 38. c3 Qf4+ 39. Kg1 Qe3+ 40. Kh2 Qxc3 $19) 37... Qf4+ 38. Kh1 Qxf5
39. Qxb7 Qxa5 40. Qxc6 $11) 36... c3 {now white already need to start being
really careful, now the character of the position changed and a pawn race
could easily take place} 37. Qc7 (37. a5 Qxc2 38. Qxc6 (38. a6 $2 Qe4 $1 39.
Qb8 c2 40. a7 c1=Q 41. a8=Q Qef4+ 42. Qxf4 Qxf4+ 43. Kg1 Qxf5 44. Qxc6 Qb1+ 45.
Kh2 Qxb3 $17) 38... Qxb3 39. Qe8 {only move, not an easy idea to spot if you
are already under pshychological pressure due to the loss of control in a
completely equal position}) 37... Qxc2 38. Qg3 Qxb3 39. a5 $2 {this is the
mistake that gives black the clear advantage, white could have kept equality
with} (39. Qg6+ $1 Kh8 40. Qe8+ Qg8 41. Qxc6 Qb8+ 42. Kh1 Qb1+ 43. Kh2 Qxf5 44.
Qxc3 Qf4+ 45. Qg3 $1 Qxa4 46. Qb8+ Kh7 47. Qb1+ $11 {it is not that easy to
asses this position from afar, especially if you are low on time}) 39... Kh8
40. Qd3 {now black find a very nice maneuver to finish the game} (40. Qg6 Qb8+
$1 41. Kh1 c2 $19) (40. a6 Qb6 41. Qg6 Qb8+ 42. Qg3 Qxg3+ 43. Kxg3 c2 44. a7
c1=Q 45. a8=Q+ Kh7 $19 {black is winning but he will have to prove it with
good technique}) 40... Qb8+ $19 41. Kh1 Qb2 {probably the move white missed}
42. Qe3 {now the c pawn is free to advance, but first black needs to protect
against perpetual check} Qb1+ 43. Kh2 Qb8+ 44. Kh1 c2 (44... Qe5 45. Qxe5 fxe5
46. a6 c2 47. a7 c1=Q+ $19) 45. a6 Kh7 46. a7 Qxa7 0-1

[Event "FRA-chT Top 12"]
[Site "Drancy"]
[Date "2016.06.06"]
[Round "10.3"]
[White "Fressinet, Laurent"]
[Black "Bacrot, Etienne"]
[Result "1-0"]
[ECO "C65"]
[WhiteElo "2692"]
[BlackElo "2702"]
[Annotator "RR"]
[PlyCount "83"]
[EventDate "2016.05.28"]
[EventType "team-tourn"]
[EventRounds "11"]
[EventCountry "FRA"]
[SourceTitle "CBM 172 Extra"]
[Source "ChessBase"]
[SourceDate "2016.06.21"]
[SourceVersion "1"]
[SourceVersionDate "2016.06.21"]
[SourceQuality "1"]
[WhiteTeam "Clichy Echecs"]
[BlackTeam "Bischwiller"]
[WhiteTeamCountry "FRA"]
[BlackTeamCountry "FRA"]
[TimeControl "40/5400+30:1800+30"]

1. e4 {[%emt 0:00:30] Prix de beauté de la 10ème ronde} e5 {[%emt 0:01:30]}
2. Nf3 {[%emt 0:00:30]} Nc6 {[%emt 0:00:00]} 3. Bb5 {[%emt 0:00:30]} Nf6 {
[%emt 0:00:00]} 4. d3 {[%emt 0:00:00] Un système anti mur de Berlin populaire
depuis quelques années} Bc5 {[%emt 0:00:30]} 5. c3 {[%emt 0:00:00]} O-O {
[%emt 0:04:30]} 6. O-O {[%emt 0:00:30]} d6 {[%emt 0:01:30]} 7. h3 {[%emt 0:00:
00]} (7. Nbd2) 7... Ne7 {[%emt 0:06:30]} 8. d4 {[%emt 0:01:00]} Bb6 {[%emt 0:
00:30]} 9. Bd3 {[%emt 0:00:00]} Ng6 {[%emt 0:04:30]} 10. Re1 {[%emt 0:03:00]}
c6 {[%emt 0:02:30]} (10... Re8 11. Qc2 c6 12. Na3 Bc7 13. dxe5 Nxe5 14. Nxe5
dxe5 15. Be2 h6 16. Nc4 Nh7 17. Rd1 Qf6 18. Ne3 Qg6 19. Bg4 Bxg4 20. Nxg4 Bb6
21. a4 h5 22. Nh2 Nf6 23. a5 Bc5 24. b4 Bf8 25. Re1 a6 26. Nf3 Nd5 27. Qb3 Nf4
28. Bxf4 exf4 29. Rad1 Rad8 30. e5 Rxd1 31. Rxd1 Qf5 32. Re1 g5 33. Nd4 Qg6 34.
e6 Kh8 35. Qd1 fxe6 36. Nf3 g4 37. Ne5 Qf5 38. hxg4 hxg4 39. Nxg4 Bg7 40. Qd7 {
Vachier Lagrave,M (2788)-Kramnik,V (2801) Stavanger 2016 1/2-1/2}) 11. a4 {
[%emt 0:18:30]} Re8 {[%emt 0:04:30]} 12. Qc2 {[%emt 0:00:30]} Nh5 $146 {
[%emt 0:12:30]} (12... Bc7 13. Be3 d5 14. Nbd2 exd4 15. Bxd4 Be6 16. Ng5 dxe4
17. Ndxe4 Nxe4 18. Nxe6 Rxe6 19. Rxe4 Rxe4 20. Bxe4 Bb6 21. Bxb6 axb6 22. Re1
Nf8 23. Bd3 Qd7 24. Bc4 Re8 25. Rd1 Qc7 26. Qd2 Qe5 27. Qd4 Qxd4 28. Rxd4 Re1+
29. Kh2 g6 30. g4 h6 31. h4 Kg7 32. g5 Re7 33. Kg3 f6 34. f4 Re3+ 35. Kf2 Re7
36. Rd8 hxg5 37. hxg5 fxg5 38. fxg5 Nd7 39. b4 Ne5 40. Bb3 Nf7 41. Bxf7 Kxf7
42. Kf3 {Zolochevsky,V (2366)-Ryvkin,M (2335) ICCF email 2014 1/2-1/2}) 13. Bg5
{[%emt 0:02:30]} f6 {[%emt 0:09:30]} 14. Be3 {[%emt 0:00:30]} Nhf4 {[%emt 0:00:
30]} 15. Bf1 {[%emt 0:00:30]} exd4 {[%emt 0:03:30]} 16. Nxd4 {[%emt 0:11:30]} (
16. cxd4) 16... d5 {[%emt 0:03:30]} 17. Nd2 {[%emt 0:01:30]} Bc7 {[%emt 0:00:
30]} 18. Rad1 $32 {[%emt 0:03:30][%csl Ra8,Rc8]} Qd6 {[%emt 0:01:30]} 19. N4f3
{[%emt 0:00:30]} Be6 {[%emt 0:06:30]} 20. exd5 {[%emt 0:10:30]} Nxd5 {[%emt 0:
02:30]} 21. Ne4 {[%emt 0:04:30]} Qf8 {[%emt 0:01:30]} 22. Bc5 {[%emt 0:02:30]}
Qf7 {[%emt 0:00:00]} 23. c4 $36 {[%emt 0:05:30]} Nb6 {[%emt 0:06:00]} 24. Bd6 {
[%emt 0:02:30]} Bf5 {[%emt 0:03:30]} 25. Bxc7 {[%emt 0:01:30]} Rxe4 {[%emt 0:
04:49]} 26. Rxe4 {[%emt 0:00:30]} Qxc7 {[%emt 0:00:11]} 27. Bd3 {[%emt 0:04:30]
} Bxe4 {[%emt 0:02:50]} 28. Bxe4 {[%emt 0:00:30]} Rd8 {[%emt 0:00:19]} 29.
Rxd8+ {[%emt 0:04:30]} Qxd8 {[%emt 0:00:04]} 30. a5 $16 {[%emt 0:03:02][%csl
Ge4] Le B est trés fort dans cette position ouverte} Nd7 {[%emt 0:02:11]} 31.
a6 $1 {[%emt 0:01:28]} Qb6 {[%emt 0:03:54]} 32. axb7 {[%emt 0:06:04]} Qxb7 {
[%emt 0:00:48]} 33. c5 {[%emt 0:03:34]} Qb5 {[%emt 0:04:50]} 34. Nd4 {[%emt 0:
01:59]} Qxc5 {[%emt 0:00:23]} 35. Nxc6 {[%emt 0:01:48]} Kf8 {[%emt 0:05:26]}
36. Qd2 {[%emt 0:06:45]} Ke8 {[%emt 0:02:36]} 37. b4 {[%emt 0:00:15]} Qc4 {
[%emt 0:01:20]} 38. Bxg6+ {[%emt 0:00:54]} hxg6 {[%emt 0:00:01]} 39. Qd6 {
[%emt 0:00:30]} Qe4 {[%emt 0:01:07]} 40. Qc7 {[%emt 0:00:22]} Qe1+ {[%emt 0:00:
42]} 41. Kh2 {[%emt 0:00:19]} Qd2 {[%emt 0:02:59]} 42. b5 1-0

[Event "Rohde op 09th"]
[Site "Sautron"]
[Date "2009.10.26"]
[Round "3"]
[White "Dvirnyy, Danyyil"]
[Black "Cabrera Pino, Alexis"]
[Result "1/2-1/2"]
[ECO "C65"]
[WhiteElo "2447"]
[BlackElo "2529"]
[Annotator "RR"]
[PlyCount "75"]
[EventDate "2009.10.24"]
[EventType "swiss"]
[EventRounds "9"]
[EventCountry "FRA"]
[SourceTitle "EXT 2010"]
[Source "ChessBase"]
[SourceDate "2010.11.25"]
[SourceVersion "1"]
[SourceVersionDate "2010.11.25"]
[SourceQuality "1"]
[TimeControl "6000"]
[WhiteClock "0:00:14"]
[BlackClock "0:00:27"]

1. e4 e5 {01H40} 2. Nf3 Nc6 3. Bb5 Nf6 4. O-O Bc5 5. c3 O-O 6. d4 Bb6 7. Bg5 h6
8. Bxf6 (8. Bh4 $142 d6 9. a4 a5 10. Re1 Bg4 11. Bxc6 bxc6 12. dxe5 dxe5 13.
Qxd8 Raxd8 14. Nxe5 $14 {Anand,V (2555)-Torre,E (2550) Far East Bank op 1990 
(10) 1-0}) 8... Qxf6 9. Bxc6 Qxc6 10. Nxe5 Qxe4 11. Nd2 Qh4 {01H40} (11... Qf5
12. Ndc4 d6 13. Ne3 Qe4 14. N5c4 Be6) 12. Nec4 d5 $11 13. Nxb6 axb6 14. Re1 Bg4
{01H28} 15. Qb3 Qg5 16. Nf1 Rae8 $146 {01H24} ({RR} 16... Rfe8 17. Re3 Rxe3 18.
Nxe3 Bf3 19. Qc2 Be4 20. Qe2 Re8 21. Qg4 Qxg4 22. Nxg4 f6 23. Re1 b5 24. f3 Bg6
25. Rxe8+ Bxe8 26. Ne3 c6 27. h4 Bg6 28. a3 Kf8 29. g3 Be8 30. Kf2 Bd7 31. h5 {
Breyther,R (2325)-Hegeler,F (2220)/Hamburg 1992/EXT 1997/1/2-1/2 (65)}) 17. Qb5
Qd8 {01H07} (17... Bh3 18. Ng3) 18. Re3 Qd7 19. Qxd7 Bxd7 20. Rae1 Rxe3 {01H00}
21. Rxe3 Ra8 22. a3 f6 23. f3 (23. Re7 Rd8 {[%cal Gg8f8]}) 23... Kf7 24. Kf2 g5
25. g3 Be6 {49mns} 26. Re1 Ke7 27. Ne3 Kd6 28. h4 b5 29. g4 $1 {[%csl Gf5]} b6
(29... gxh4 30. Rh1 $16) 30. Nf5+ Kd7 {39mns} (30... Bxf5 31. gxf5 {[%csl Ge6,
Rf6][%cal Ge1e6]} Rf8 32. Re6+ Kd7 33. Kg3 $36 {[%csl Rh6][%cal Gg3g4,Gg4h5]})
31. Ng7 Bf7 32. Nf5 Be6 33. Ng7 Bf7 34. Kg3 Bg6 {27mns} 35. Nf5 Bxf5 36. gxf5
Re8 37. Rxe8 Kxe8 38. h5 1/2-1/2

[Event "FRA-chT Top 12"]
[Site "Brest"]
[Date "2019.05.21"]
[Round "4.2"]
[White "Praggnanandhaa, Rameshbabu"]
[Black "Heimann, Andreas"]
[Result "1/2-1/2"]
[ECO "C65"]
[WhiteElo "2536"]
[BlackElo "2627"]
[Annotator "Sagar Shah"]
[PlyCount "133"]
[EventDate "2019.05.18"]
[EventType "team-tourn"]
[EventRounds "11"]
[EventCountry "FRA"]
[SourceTitle "CBM 190 Extra"]
[Source "ChessBase"]
[SourceDate "2019.07.15"]
[SourceVersion "1"]
[SourceVersionDate "2019.07.15"]
[SourceQuality "1"]
[WhiteTeam "Cannes"]
[BlackTeam "Mulhouse"]
[WhiteTeamCountry "FRA"]
[BlackTeamCountry "FRA"]
[TimeControl "40/5400+30:1800+30"]

1. e4 {[%emt 0:00:07] Praggnanandhaa has until now played against three
players above his Elo - Van Foreest (2601), Santos Ruiz (2549) and Heimann 
(2627) and has drawn all his games} e5 {[%emt 0:00:00]} 2. Nf3 {[%emt 0:00:04]}
Nc6 {[%emt 0:00:00]} 3. Bb5 {[%emt 0:00:05]} Nf6 {[%emt 0:00:00]} 4. d3 {
[%emt 0:00:09]} Bc5 {[%emt 0:00:01]} 5. c3 {[%emt 0:00:05]} O-O {[%emt 0:00:23]
} 6. O-O {[%emt 0:00:13]} d6 {[%emt 0:00:21]} 7. Ba4 {[%emt 0:00:14]} (7. Nbd2
Ne7 8. d4 exd4 9. cxd4 Bb6 10. Re1 Bg4 11. Qb3 d5 12. e5 Nd7 13. h3 Bh5 14. Qd1
f6 15. e6 Nb8 16. g4 Bg6 17. Nf1 Qd6 18. Ng3 Nbc6 19. Bxc6 bxc6 20. a4 Ba5 21.
Bd2 Bxd2 22. Qxd2 Rab8 23. Rac1 Qb4 24. Qxb4 Rxb4 25. Nh4 Rxa4 26. Ngf5 Bxf5
27. Nxf5 Re8 28. Nxe7+ Rxe7 29. Rxc6 Rxd4 30. Ra1 Re4 31. Rxa7 R4xe6 32. Rxe6
Rxe6 33. Rxc7 Rb6 34. Rd7 Rxb2 35. Rxd5 {1/2-1/2 (35) Vachier Lagrave,M (2780)
-So,W (2754) Abidjan 2019}) 7... Ne7 {[%emt 0:01:08]} 8. Bc2 {[%emt 0:01:29]}
Ng6 {[%emt 0:01:23]} 9. d4 {[%emt 0:00:30]} Bb6 {[%emt 0:00:05]} 10. a4 {
[%emt 0:00:13]} c6 {[%emt 0:00:06]} 11. dxe5 {[%emt 0:00:18]} Nxe5 {[%emt 0:01:
14]} 12. Nxe5 {[%emt 0:00:10]} dxe5 {[%emt 0:00:05]} 13. Qxd8 {[%emt 0:00:33]}
Rxd8 {[%emt 0:01:07]} 14. a5 {[%emt 0:01:03]} Bc5 {[%emt 0:02:23]} 15. Nd2 {
[%emt 0:00:39]} Be6 {[%emt 0:07:37]} 16. Re1 {[%emt 0:00:30]} Ne8 $146 {
[%emt 0:09:36]} (16... b5 17. Nb3 Bxb3 18. Bxb3 Ng4 19. Re2 Rd6 20. Bg5 Kf8 21.
Rf1 Nf6 22. g3 a6 23. Kg2 Nd7 24. Bc1 Ba7 25. f4 f6 26. h4 Re8 27. h5 h6 28.
Ba2 c5 29. Be3 exf4 30. gxf4 Rxe4 31. Bb1 Re7 32. Rfe1 f5 33. Bxf5 Nf6 34. Kf3
Nd5 35. Rd2 Rd8 36. Be4 Red7 37. Red1 Nf6 38. Rxd7 Nxd7 39. Rd6 {1-0 (39)
Carlsen,M (2845)-Grischuk,A (2771) Shamkir 2019}) 17. Nb3 {[%emt 0:07:47]} Be7
{[%emt 0:11:38]} 18. f3 {[%emt 0:23:26]} b6 {[%emt 0:06:09]} 19. Be3 {[%emt 0:
06:57]} c5 {[%emt 0:02:40]} 20. Nd2 {[%emt 0:05:50]} f6 {[%emt 0:10:11]} 21. g3
{[%emt 0:13:02]} c4 {[%emt 0:10:10]} 22. Ba4 {[%emt 0:11:38]} Rab8 {[%emt 0:05:
56]} 23. axb6 {[%emt 0:08:57]} axb6 {[%emt 0:00:24]} 24. Bxe8 {[%emt 0:03:57]}
Rxe8 {[%emt 0:00:26]} 25. Ra6 {[%emt 0:01:28]} Red8 {[%emt 0:09:09]} 26. Nf1 {
[%emt 0:08:03]} Bh3 {[%emt 0:02:52]} 27. Nd2 {[%emt 0:02:20]} b5 {[%emt 0:05:
10]} 28. Kf2 {[%emt 0:01:02]} h5 {[%emt 0:04:29]} 29. f4 {[%emt 0:02:15]} b4 {
[%emt 0:03:32]} 30. fxe5 {[%emt 0:01:18]} bxc3 {[%emt 0:00:07]} 31. bxc3 {
[%emt 0:00:07]} Rb2 {[%emt 0:00:12]} 32. Re2 {[%emt 0:00:48]} Bg4 {[%emt 0:01:
15]} 33. Nf3 {[%emt 0:00:03]} Rxe2+ {[%emt 0:01:40]} 34. Kxe2 {[%emt 0:00:02]}
fxe5 {[%emt 0:00:10]} 35. h3 {[%emt 0:00:28]} Bxf3+ {[%emt 0:01:26]} 36. Kxf3 {
[%emt 0:00:01]} Rd3 {[%emt 0:00:06]} 37. Ke2 {[%emt 0:00:43]} Rxc3 {[%emt 0:00:
06]} 38. Re6 {[%emt 0:00:31]} Bf6 {[%emt 0:01:01]} 39. g4 {[%emt 0:00:55]} Rc2+
{[%emt 0:02:26]} 40. Kf3 {[%emt 0:00:27]} Rc3 {[%emt 0:01:19]} 41. Ke2 {
[%emt 0:31:00]} Rc2+ 42. Kf3 Kf7 {[%emt 0:31:41]} 43. Rc6 {[%emt 0:01:09]}
hxg4+ {[%emt 0:00:00]} 44. hxg4 {[%emt 0:00:00]} Rc3 {[%emt 0:00:00]} 45. Ke2 {
[%emt 0:00:00]} Rc2+ {[%emt 0:00:00]} 46. Kf3 {[%emt 0:00:00]} Bd8 {[%emt 0:00:
00]} 47. g5 {[%emt 0:00:00]} g6 {[%emt 0:00:00]} 48. Rd6 {[%emt 0:00:00]} Be7 {
[%emt 0:00:00]} 49. Rc6 {[%emt 0:00:00]} c3 {[%emt 0:00:00]} 50. Rc7 {[%emt 0:
00:00]} Ke8 {[%emt 0:00:00]} 51. Rc6 {[%emt 0:00:00]} Kf7 {[%emt 0:00:00]} 52.
Rc7 {[%emt 0:00:00]} Ke8 {[%emt 0:00:00]} 53. Rc6 {[%emt 0:00:00]} Kd7 {
[%emt 0:00:00]} 54. Rxg6 {[%emt 0:00:00]} Ra2 {[%emt 0:00:00]} 55. Rb6 {
[%emt 0:00:00]} c2 {[%emt 0:00:00]} 56. Rb7+ {[%emt 0:00:00]} Kc6 {[%emt 0:04:
55]} 57. Rxe7 {[%emt 0:00:00]} Ra3 {[%emt 0:00:03]} 58. Ke2 {[%emt 0:00:14]}
Rxe3+ {[%emt 0:00:03]} 59. Kd2 {[%emt 0:00:03]} Rxe4 {[%emt 0:00:05]} 60. Kxc2
{[%emt 0:00:05]} Kd6 {[%emt 0:00:14]} 61. Ra7 {[%emt 0:00:15]} Rg4 {[%emt 0:00:
08]} 62. g6 {[%emt 0:00:05]} Ke6 {[%emt 0:00:05]} 63. Kd3 {[%emt 0:00:05]} Kf6
{[%emt 0:00:08]} 64. g7 {[%emt 0:00:06]} Rg3+ {[%emt 0:00:05]} 65. Ke4 {
[%emt 0:00:06]} Rxg7 {[%emt 0:00:04]} 66. Rxg7 {[%emt 0:00:03]} Kxg7 {[%emt 0:
00:04]} 67. Kxe5 1/2-1/2